bitfinex/quotes_BTCUSD_20240607
["timestamp","ask_amount","ask_price","bid_price","bid_amount"]
[1717794903611,0.37354072,69386.0,69385.0,0.145123]
[1717794903860,0.6727356,69386.0,69385.0,0.145123]
[1717794904085,0.71576958,69386.0,69385.0,0.145123]
[1717794904309,0.80433148,69386.0,69385.0,0.001]
[1717794904525,0.2563,69366.0,69365.0,0.43500642]
[1717794904748,0.2563,69366.0,69365.0,0.57942535]
[1717794904976,0.2563,69366.0,69365.0,0.14441893]
[1717794905409,0.2563,69366.0,69365.0,0.28858293]
[1717794906256,0.2563,69366.0,69365.0,0.31158293]
[1717794906468,0.2463,69366.0,69365.0,0.31158293]
[1717794906666,0.2463,69366.0,69365.0,0.37157552]
[1717794906874,0.25550923,69366.0,69365.0,0.37150467]
[1717794907508,0.25550923,69366.0,69365.0,0.65983367]
[1717794907712,0.00920923,69366.0,69365.0,0.65983367]
[1717794908056,0.0815,69371.0,69370.0,0.144154]
[1717794908259,0.0915,69371.0,69370.0,0.31157293]
[1717794908465,0.260225,69371.0,69370.0,0.31157293]
[1717794908666,0.251,69371.0,69370.0,0.31157293]
[1717794908952,0.260225,69371.0,69370.0,0.31157293]
[1717794909305,0.256225,69371.0,69370.0,0.31257293]
[1717794909841,0.250225,69371.0,69370.0,0.31157293]
[1717794910828,0.256225,69371.0,69370.0,0.31257293]
[1717794911438,0.015225,69371.0,69370.0,0.66097212]
[1717794911629,0.015225,69371.0,69370.0,0.60088193]
[1717794911835,0.006,69371.0,69370.0,0.60088193]
[1717794912861,0.1501,69372.0,69371.0,0.432456]
[1717794913100,0.0779,69373.0,69372.0,0.14415]
[1717794913309,0.0779,69373.0,69372.0,0.31156893]
[1717794914065,0.0879,69373.0,69372.0,0.31156893]
[1717794914268,0.0779,69373.0,69372.0,0.31156893]
[1717794914649,0.0789,69373.0,69372.0,0.31156893]
[1717794915270,0.08789015,69373.0,69372.0,0.31156893]
[1717794915477,0.0789,69373.0,69372.0,0.31156893]
[1717794915878,0.0779,69373.0,69372.0,0.31156893]
[1717794916051,0.0779,69373.0,69372.0,0.59986893]
[1717794916254,0.08789015,69373.0,69372.0,0.59986893]
[1717794916477,0.0789,69373.0,69372.0,0.59986893]
[1717794916882,0.0779,69373.0,69372.0,0.59986893]
[1717794917092,0.0789,69373.0,69372.0,0.59986893]
[1717794917998,0.0779,69373.0,69372.0,0.59986893]
[1717794919907,0.0789,69373.0,69372.0,0.59986893]
[1717794920564,0.08685984,69373.0,69372.0,0.59986893]
[1717794920971,0.08785984,69373.0,69372.0,0.59986893]
[1717794923027,0.08685984,69373.0,69372.0,0.59986893]
[1717794923758,0.08785984,69373.0,69372.0,0.59986893]
[1717794925941,0.08685984,69373.0,69372.0,0.59986893]
[1717794926353,0.08785984,69373.0,69372.0,0.59986893]
[1717794926762,0.08685984,69373.0,69372.0,0.59986893]
[1717794927208,0.08785984,69373.0,69372.0,0.59986893]
[1717794927416,0.16265921,69373.0,69372.0,0.59986893]
[1717794927952,0.16265933,69373.0,69372.0,0.59986893]
[1717794928430,0.16165933,69373.0,69372.0,0.59986893]
[1717794929265,0.17165933,69373.0,69372.0,0.31156893]
[1717794929469,0.32915933,69373.0,69372.0,0.31156893]
[1717794929670,0.33015933,69373.0,69372.0,0.31156893]
[1717794930058,0.32915933,69373.0,69372.0,0.31156893]
[1717794930474,0.33015933,69373.0,69372.0,0.31156893]
[1717794931457,0.33934799,69373.0,69372.0,0.31156893]
[1717794933255,0.63857139,69373.0,69372.0,0.31156893]
[1717794935820,0.62857139,69373.0,69372.0,0.59986893]
[1717794936437,0.32934799,69373.0,69372.0,0.59986893]
[1717794937331,0.33934799,69373.0,69372.0,0.59986893]
[1717794937566,0.33935068,69373.0,69372.0,0.59986893]
[1717794937929,0.32835068,69373.0,69372.0,0.59986893]
[1717794938349,0.09395068,69373.0,69372.0,0.59986893]
[1717794939163,0.10395068,69373.0,69372.0,0.59986893]
[1717794939599,0.09395068,69373.0,69372.0,0.59986893]
[1717794939925,0.09295068,69373.0,69372.0,0.59986893]
[1717794940156,0.09395068,69373.0,69372.0,0.68868672]
[1717794940566,0.09395068,69373.0,69372.0,0.84226893]
[1717794940779,0.08499084,69373.0,69372.0,0.84226893]
[1717794940976,0.07580218,69373.0,69372.0,0.84226893]
[1717794941177,0.07480218,69373.0,69372.0,0.84226893]
[1717794942005,0.07580218,69373.0,69372.0,0.84226893]
[1717794942627,0.07580058,69373.0,69372.0,0.84226893]
[1717794943273,0.07480058,69373.0,69372.0,0.84226893]
[1717794943712,0.09372257,69373.0,69372.0,0.84226893]
[1717794943920,0.09372257,69373.0,69372.0,0.59986893]
[1717794944321,0.13686704,69373.0,69372.0,0.59986893]
[1717794944734,0.13772704,69373.0,69372.0,0.59986893]
[1717794945301,0.15943105,69373.0,69372.0,0.59986893]
[1717794945838,0.09458257,69373.0,69372.0,0.59986893]
[1717794946049,0.07665925,69373.0,69372.0,0.59986893]
[1717794946252,0.09458233,69373.0,69372.0,0.59986893]
[1717794947665,0.15942909,69373.0,69372.0,0.59986893]
[1717794947867,0.15842909,69373.0,69372.0,0.59986893]
[1717794948272,0.15942909,69373.0,69372.0,0.59986893]
[1717794949622,0.15842909,69373.0,69372.0,0.59986893]
[1717794950076,0.09458233,69373.0,69372.0,0.59986893]
[1717794950524,0.15944889,69373.0,69372.0,0.59986893]
[1717794950963,0.16944889,69373.0,69372.0,0.59986893]
[1717794951147,0.15944889,69373.0,69372.0,0.59986893]
[1717794951378,0.18104506,69373.0,69372.0,0.59986893]
[1717794952907,0.18004506,69373.0,69372.0,0.59986893]
[1717794953120,0.18104506,69373.0,69372.0,0.59986893]
[1717794953714,0.18004506,69373.0,69372.0,0.59986893]
[1717794954069,0.18104506,69373.0,69372.0,0.59986893]
[1717794956767,0.10458272,69373.0,69372.0,0.59986893]
[1717794956992,0.08665964,69373.0,69372.0,0.59986893]
[1717794957232,0.18473757,69373.0,69372.0,0.59986893]
[1717794957873,0.2026626,69373.0,69372.0,0.59986893]
[1717794958092,0.2026626,69373.0,69372.0,0.28856893]
[1717794958093,0.3747626,69373.0,69372.0,0.28856893]
[1717794958296,0.64269824,69373.0,69372.0,0.28856893]
[1717794959452,0.65351994,69373.0,69372.0,0.31156893]
[1717794960003,0.64269824,69373.0,69372.0,0.31156893]
[1717794960549,0.6535214,69373.0,69372.0,0.31156893]
[1717794961700,0.64269824,69373.0,69372.0,0.31156893]
[1717794963669,0.64270876,69373.0,69372.0,0.31156893]
[1717794965166,0.64270781,69373.0,69372.0,0.31156893]
[1717794966619,0.6535309,69373.0,69372.0,0.31156893]
[1717794966829,0.64270781,69373.0,69372.0,0.31156893]
[1717794967250,0.6535309,69373.0,69372.0,0.31156893]
[1717794967457,0.64270781,69373.0,69372.0,0.31156893]
[1717794967664,0.66270781,69373.0,69372.0,0.31156893]
[1717794967865,0.64270781,69373.0,69372.0,0.31156893]
[1717794969857,0.34349424,69373.0,69372.0,0.31156893]
[1717794970058,0.64273875,69373.0,69372.0,0.31156893]
[1717794970697,0.56792954,69373.0,69372.0,0.31156893]
[1717794970897,0.64274022,69373.0,69372.0,0.31156893]
[1717794971300,0.64274022,69373.0,69372.0,0.14415]
[1717794971301,0.66274022,69373.0,69372.0,0.14415]
[1717794971566,0.66274022,69373.0,69365.0,0.14511]
[1717794971567,0.273,69366.0,69365.0,0.14511]
[1717794971940,0.6636685,69366.0,69365.0,0.14511]
[1717794972274,0.67449269,69366.0,69365.0,0.14511]
[1717794974025,0.67649269,69366.0,69365.0,0.14611]
[1717794976323,0.67651767,69366.0,69365.0,0.14611]
[1717794977266,0.66569348,69366.0,69365.0,0.14611]
[1717794978527,0.66569348,69366.0,69365.0,0.001946]
[1717794978748,0.76569348,69366.0,69365.0,0.001946]
[1717794978881,1.4775383,69366.0,69365.0,0.001946]
[1717794979099,1.68975432,69366.0,69365.0,0.001946]
[1717794979311,1.68984642,69366.0,69365.0,0.001946]
[1717794979686,1.68884642,69366.0,69365.0,0.000946]
[1717794979900,1.70579883,69366.0,69365.0,0.000946]
[1717794980113,2.0526638,69366.0,69365.0,0.000946]
[1717794980320,1.99479428,69366.0,69365.0,0.001946]
[1717794980538,2.00079428,69366.0,69365.0,0.002946]
[1717794980740,2.00079428,69366.0,69365.0,0.000946]
[1717794980741,1.99509774,69366.0,69365.0,0.000946]
[1717794980943,2.09854676,69366.0,69365.0,0.000946]
[1717794981148,2.08186376,69366.0,69365.0,0.001946]
[1717794981331,1.86741574,69366.0,69365.0,0.001946]
[1717794982081,1.87841574,69366.0,69365.0,0.002946]
[1717794982810,1.83683922,69366.0,69365.0,0.002946]
[1717794982973,1.83160423,69366.0,69365.0,0.002946]
[1717794984214,1.93763598,69366.0,69365.0,0.002946]
[1717794985207,1.79221523,69366.0,69365.0,0.002946]
[1717794986042,1.69221523,69366.0,69365.0,0.002946]
[1717794986242,1.79221523,69366.0,69365.0,0.002946]
[1717794986448,1.44780425,69366.0,69365.0,0.002946]
[1717794986679,1.21260425,69366.0,69365.0,0.002946]
[1717794986881,1.10034055,69366.0,69365.0,0.002946]
[1717794987618,1.04193177,69366.0,69365.0,0.002946]
[1717794988154,1.03093177,69366.0,69365.0,0.001946]
[1717794988359,1.02493177,69366.0,69365.0,0.000946]
[1717794988565,1.09179726,69366.0,69365.0,0.001946]
[1717794988761,1.09779726,69366.0,69365.0,0.002946]
[1717794988973,0.71063546,69366.0,69365.0,0.002946]
[1717794989181,0.53681736,69366.0,69365.0,0.002946]
[1717794989997,0.61291607,69366.0,69365.0,0.001946]
[1717794990422,0.52081736,69366.0,69365.0,0.00123432]
[1717794990657,0.52381736,69366.0,69365.0,0.00223432]
[1717794990889,0.52377152,69366.0,69365.0,0.00123432]
[1717794991085,0.60987202,69366.0,69365.0,0.00123432]
[1717794991349,0.62187202,69366.0,69365.0,0.00323432]
[1717794991905,0.61287202,69366.0,69365.0,0.00223432]
[1717794992306,0.52677152,69366.0,69365.0,0.00223432]
[1717794993022,0.53577152,69366.0,69365.0,0.00323432]
[1717794993202,0.53277152,69366.0,69365.0,0.00323432]
[1717794993407,0.53277152,69366.0,69365.0,0.00223432]
[1717794993408,0.52977152,69366.0,69365.0,0.00223432]
[1717794993672,0.53277152,69366.0,69365.0,0.00323432]
[1717794994422,0.63140346,69366.0,69365.0,0.00223432]
[1717794994845,0.64040346,69366.0,69365.0,0.00323432]
[1717794995863,0.53277152,69366.0,69365.0,0.00323432]
[1717794996061,0.61889227,69366.0,69365.0,0.00323432]
[1717794996309,0.61888297,69366.0,69365.0,0.00323432]
[1717794996742,0.53276222,69366.0,69365.0,0.00323432]
[1717794997363,0.64039416,69366.0,69365.0,0.00323432]
[1717794998356,0.64040099,69366.0,69365.0,0.00323432]
[1717794998746,0.53276905,69366.0,69365.0,0.00323432]
[1717794999101,0.64045469,69366.0,69365.0,0.00323432]
[1717794999299,0.53276905,69366.0,69365.0,0.00323432]
[1717794999546,0.64046663,69366.0,69365.0,0.00323432]
[1717795000351,0.53276905,69366.0,69365.0,0.00323432]
[1717795000519,0.64046663,69366.0,69365.0,0.00323432]
[1717795002571,0.53276905,69366.0,69365.0,0.00323432]
[1717795004308,0.23345577,69366.0,69365.0,0.00323432]
[1717795004503,0.53275909,69366.0,69365.0,0.00323432]
[1717795007185,0.53275342,69366.0,69365.0,0.00323432]
[1717795008111,0.51275342,69366.0,69365.0,0.00323432]
[1717795009221,0.51361342,69366.0,69365.0,0.00323432]
[1717795009393,0.23431577,69366.0,69365.0,0.00323432]
[1717795009602,0.53359545,69366.0,69365.0,0.00323432]
[1717795009885,0.23429756,69366.0,69365.0,0.00323432]
[1717795010779,0.53359545,69366.0,69365.0,0.00323432]
[1717795011181,0.53359593,69366.0,69365.0,0.00323432]
[1717795011436,0.51359593,69366.0,69365.0,0.00323432]
[1717795011643,0.53359593,69366.0,69365.0,0.00323432]
[1717795013401,0.5900037,69366.0,69365.0,0.00323432]
[1717795014252,0.5700037,69366.0,69365.0,0.00323432]
[1717795014681,0.5900037,69366.0,69365.0,0.00323432]
[1717795014898,0.79592533,69366.0,69365.0,0.00323432]
[1717795015110,0.95742533,69366.0,69365.0,0.00323432]
[1717795015312,0.82816271,69366.0,69365.0,0.00323432]
[1717795016361,0.94040411,69366.0,69365.0,0.00323432]
[1717795016561,1.14040411,69366.0,69365.0,0.00323432]
[1717795016859,0.94040411,69366.0,69365.0,0.00323432]
[1717795020286,0.93540411,69366.0,69365.0,0.00323432]
[1717795022260,0.93177199,69366.0,69365.0,0.00323432]
[1717795022482,0.67377199,69366.0,69365.0,0.00323432]
[1717795022687,0.69377199,69366.0,69365.0,0.00323432]
[1717795023291,0.67378764,69366.0,69365.0,0.00323432]
[1717795023709,0.67378791,69366.0,69365.0,0.00323432]
[1717795025001,0.58154635,69366.0,69365.0,0.00323432]
[1717795025198,0.67378791,69366.0,69365.0,0.00323432]
[1717795025404,0.56154635,69366.0,69365.0,0.00323432]
[1717795026010,0.67378791,69366.0,69365.0,0.00323432]
[1717795026215,0.56154635,69366.0,69365.0,0.00323432]
[1717795026394,0.67378791,69366.0,69365.0,0.00323432]
[1717795026833,0.50861456,69366.0,69365.0,0.24273432]
[1717795027054,0.50861456,69366.0,69365.0,0.41142668]
[1717795027260,0.50861456,69366.0,69365.0,0.55431725]
[1717795027464,0.50861456,69366.0,69365.0,0.53131725]
[1717795027465,0.41943832,69366.0,69365.0,0.53131725]
[1717795028018,0.40743832,69366.0,69365.0,0.52931725]
[1717795028235,0.39661456,69366.0,69365.0,0.52931725]
[1717795028437,0.39661456,69366.0,69365.0,0.53031725]
[1717795028438,0.40061456,69366.0,69365.0,0.53031725]
[1717795028611,0.40061456,69366.0,69365.0,0.52931725]
[1717795029014,0.40455637,69366.0,69365.0,0.53031725]
[1717795029616,0.41255637,69366.0,69365.0,0.53131725]
[1717795030003,0.40455637,69366.0,69365.0,0.53031725]
[1717795030486,0.41255637,69366.0,69365.0,0.53131725]
[1717795030705,0.52056847,69366.0,69365.0,0.53131725]
[1717795030901,0.41254938,69366.0,69365.0,0.53131725]
[1717795031331,0.42337358,69366.0,69365.0,0.53131725]
[1717795033440,0.41254938,69366.0,69365.0,0.53131725]
[1717795034414,0.52059011,69366.0,69365.0,0.53131725]
[1717795034618,0.41254938,69366.0,69365.0,0.53131725]
[1717795034839,0.52059022,69366.0,69365.0,0.53131725]
[1717795035882,0.41254938,69366.0,69365.0,0.53131725]
[1717795036625,0.41254381,69366.0,69365.0,0.53131725]
[1717795037162,0.52057579,69366.0,69365.0,0.53131725]
[1717795038638,0.51557579,69366.0,69365.0,0.53131725]
[1717795038995,0.51558123,69366.0,69365.0,0.53131725]
[1717795039625,0.21632044,69366.0,69365.0,0.53131725]
[1717795039823,0.51557938,69366.0,69365.0,0.53131725]
[1717795040231,0.10828846,69366.0,69365.0,0.53131725]
[1717795040404,0.10028846,69366.0,69365.0,0.53031725]
[1717795041349,0.09228846,69366.0,69365.0,0.52931725]
[1717795041548,0.10028846,69366.0,69365.0,0.53031725]
[1717795041722,0.10428846,69366.0,69365.0,0.53131725]
[1717795042155,0.10028846,69366.0,69365.0,0.53031725]
[1717795042361,0.10028846,69366.0,69365.0,0.53131725]
[1717795042562,0.10428846,69366.0,69365.0,0.53131725]
[1717795042768,0.10028846,69366.0,69365.0,0.53031725]
[1717795042930,0.09228846,69366.0,69365.0,0.52931725]
[1717795043131,0.09228846,69366.0,69365.0,0.53031725]
[1717795043337,0.09828846,69366.0,69365.0,0.53031725]
[1717795043967,0.09228846,69366.0,69365.0,0.58234897]
[1717795044172,0.09228846,69366.0,69365.0,0.58334897]
[1717795044173,0.18268648,69366.0,69365.0,0.58334897]
[1717795044369,0.16708455,69366.0,69365.0,0.58334897]
[1717795044569,0.09828846,69366.0,69365.0,0.58334897]
[1717795044890,0.13948393,69366.0,69365.0,0.58334897]
[1717795045092,0.13548393,69366.0,69365.0,0.81764625]
[1717795045463,0.12287062,69366.0,69365.0,0.81864625]
[1717795045865,0.11887062,69366.0,69365.0,0.81764625]
[1717795046203,0.08267515,69366.0,69365.0,0.81864625]
[1717795046349,0.09601191,69366.0,69365.0,0.90201088]
[1717795046548,0.09601191,69366.0,69365.0,0.84164625]
[1717795046796,0.09601191,69366.0,69365.0,0.84064625]
[1717795046797,0.01419676,69366.0,69365.0,0.84064625]
[1717795046969,0.08900454,69366.0,69365.0,0.84064625]
[1717795047177,0.09800454,69366.0,69365.0,0.84064625]
[1717795047353,0.09400454,69366.0,69365.0,0.84064625]
[1717795047620,0.08900454,69366.0,69365.0,0.84064625]
[1717795047883,0.09000454,69366.0,69365.0,0.84064625]
[1717795048095,0.09100454,69366.0,69365.0,0.84064625]
[1717795048391,0.09200454,69366.0,69365.0,0.84064625]
[1717795048887,0.09100454,69366.0,69365.0,0.84064625]
[1717795049069,0.09200454,69366.0,69365.0,0.84064625]
[1717795049272,0.09000454,69366.0,69365.0,0.99026082]
[1717795049647,0.09200454,69366.0,69365.0,0.99026082]
[1717795050185,0.09000454,69366.0,69365.0,0.99026082]
[1717795050413,0.08900454,69366.0,69365.0,0.99026082]
[1717795050571,0.09100454,69366.0,69365.0,0.99026082]
[1717795050785,0.09200454,69366.0,69365.0,0.99026082]
[1717795051378,0.01719676,69366.0,69365.0,0.84064625]
[1717795051655,0.01719676,69366.0,69365.0,0.99026082]
[1717795051656,0.07866728,69366.0,69365.0,0.99026082]
[1717795051992,0.07866728,69366.0,69365.0,1.00026082]
[1717795052542,0.07866728,69366.0,69365.0,0.99026082]
[1717795052874,0.07866728,69366.0,69365.0,0.84035793]
[1717795053092,0.09200404,69366.0,69365.0,0.84035793]
[1717795053498,0.09171586,69366.0,69365.0,0.84035793]
[1717795053699,0.09671586,69366.0,69365.0,0.84035793]
[1717795053922,0.09671586,69366.0,69365.0,0.28952893]
[1717795054346,0.50391881,69366.0,69365.0,0.14511]
[1717795054601,0.39598677,69366.0,69365.0,0.14511]
[1717795055394,0.39298677,69366.0,69365.0,0.14511]
[1717795055794,0.39698677,69366.0,69365.0,0.14611]
[1717795056036,0.39298677,69366.0,69365.0,0.14511]
[1717795056438,0.40198677,69366.0,69365.0,0.14611]
[1717795056818,0.39300126,69366.0,69365.0,0.14511]
[1717795057255,0.40200126,69366.0,69365.0,0.14611]
[1717795057461,0.40700126,69366.0,69365.0,0.14711]
[1717795057862,0.40200126,69366.0,69365.0,0.14611]
[1717795058093,0.40200126,69366.0,69365.0,0.14711]
[1717795058205,0.40800126,69366.0,69365.0,0.14711]
[1717795059383,0.33317949,69366.0,69365.0,0.14711]
[1717795059624,0.40799957,69366.0,69365.0,0.14711]
[1717795061417,0.51596192,69366.0,69365.0,0.14711]
[1717795062020,0.51596022,69366.0,69365.0,0.14711]
[1717795063397,0.40799957,69366.0,69365.0,0.14711]
[1717795068280,0.41382384,69366.0,69365.0,0.84087893]
[1717795068487,0.10872866,69366.0,69365.0,0.81795793]
[1717795068702,0.10872866,69366.0,69365.0,0.29152893]
[1717795068920,0.40799723,69366.0,69365.0,0.29152893]
[1717795071532,0.40799641,69366.0,69365.0,0.29152893]
[1717795074779,0.41882057,69366.0,69365.0,0.29152893]
[1717795075619,0.41882061,69366.0,69365.0,0.29152893]
[1717795076214,0.40799641,69366.0,69365.0,0.29152893]
[1717795079961,0.41882036,69366.0,69365.0,0.29152893]
[1717795081433,0.40799641,69366.0,69365.0,0.29152893]
[1717795082299,0.40299641,69366.0,69365.0,0.29152893]
[1717795082536,0.40299641,69366.0,69365.0,0.85411082]
[1717795082537,0.41382031,69366.0,69365.0,0.85411082]
[1717795082747,0.41382031,69366.0,69365.0,0.80935793]
[1717795082954,0.40299641,69366.0,69365.0,0.84735793]
[1717795083157,0.50207266,69366.0,69365.0,0.98098328]
[1717795083363,0.20280409,69366.0,69365.0,0.98098328]
[1717795083510,0.09772784,69366.0,69365.0,0.98098328]
[1717795083714,0.10272784,69366.0,69365.0,0.98098328]
[1717795084298,0.10572784,69366.0,69365.0,0.98098328]
[1717795084723,0.08871778,69366.0,69365.0,0.97998328]
[1717795084936,0.08871778,69366.0,69365.0,0.98098328]
[1717795085384,0.08871778,69366.0,69365.0,0.97998328]
[1717795085628,0.08871791,69366.0,69365.0,0.83035793]
[1717795085793,0.08871791,69366.0,69365.0,0.9799766]
[1717795086255,0.09371791,69366.0,69365.0,0.9799766]
[1717795086672,0.08871791,69366.0,69365.0,0.9799766]
[1717795086919,0.09671791,69366.0,69365.0,0.9799766]
[1717795087352,0.16155004,69366.0,69365.0,0.9799766]
[1717795087566,0.15355004,69366.0,69365.0,0.9799766]
[1717795087978,0.09671791,69366.0,69365.0,0.9799766]
[1717795088411,0.02190858,69366.0,69365.0,0.97997655]
[1717795088615,0.09971789,69366.0,69365.0,0.97997655]
[1717795089445,0.16454725,69366.0,69365.0,0.97997655]
[1717795089856,0.09471789,69366.0,69365.0,0.97997655]
[1717795090288,0.09871789,69366.0,69365.0,0.97997655]
[1717795091029,0.09871789,69366.0,69365.0,1.3828032]
[1717795091234,0.08538113,69366.0,69365.0,1.3828032]
[1717795091463,0.09874854,69366.0,69365.0,1.3828032]
[1717795091622,0.08538113,69366.0,69365.0,1.3828032]
[1717795092241,0.07938113,69366.0,69365.0,1.49990123]
[1717795093074,0.07538113,69366.0,69365.0,1.49990123]
[1717795093301,0.07938113,69366.0,69365.0,1.49990123]
[1717795093718,0.07838113,69366.0,69365.0,1.49990123]
[1717795094082,0.07838113,69366.0,69365.0,1.50390123]
[1717795094241,0.07538113,69366.0,69365.0,1.50390123]
[1717795094857,0.00057182,69366.0,69365.0,1.50990123]
[1717795095661,0.00057182,69366.0,69365.0,1.70990123]
[1717795095867,0.00057182,69366.0,69365.0,1.50990123]
[1717795096070,0.00057182,69366.0,69365.0,1.50589232]
[1717795096441,0.00057182,69366.0,69365.0,1.99422132]
[1717795096681,0.00057182,69366.0,69365.0,1.99322132]
[1717795096893,0.00057182,69366.0,69365.0,2.00022132]
[1717795097494,8.2e-07,69366.0,69365.0,2.16852418]
[1717795097711,8.2e-07,69366.0,69365.0,2.26152418]
[1717795097946,8.2e-07,69366.0,69365.0,2.47841913]
[1717795098146,8.2e-07,69366.0,69365.0,2.49041913]
[1717795099517,8.2e-07,69366.0,69365.0,2.59041913]
[1717795099731,0.00086,69373.0,69372.0,1.74255]
[1717795099931,0.00086,69373.0,69372.0,2.05956747]
[1717795100571,0.00086,69373.0,69372.0,2.05953433]
[1717795100985,0.00086,69373.0,69372.0,2.07353433]
[1717795101179,0.00086,69373.0,69372.0,2.08753433]
[1717795101439,0.00086,69373.0,69372.0,2.2326522]
[1717795101650,0.00086,69373.0,69372.0,2.2046522]
[1717795101867,0.00086,69373.0,69372.0,2.2186522]
[1717795103076,0.00086,69373.0,69372.0,2.2326522]
[1717795103330,0.00086,69373.0,69372.0,2.25414815]
[1717795104017,0.00086,69373.0,69372.0,2.3326522]
[1717795104680,0.00086,69373.0,69372.0,2.3186522]
[1717795105092,0.0137632,69386.0,69385.0,0.675869]
[1717795105305,0.0137632,69386.0,69385.0,1.37868623]
[1717795107615,0.0137632,69386.0,69385.0,1.37968623]
[1717795110319,0.0137632,69386.0,69385.0,1.37868623]
[1717795110511,0.0137632,69386.0,69385.0,1.38268623]
[1717795110728,0.0137632,69386.0,69385.0,1.38768623]
[1717795112351,0.0137632,69386.0,69385.0,1.58768623]
[1717795112551,0.0137632,69386.0,69385.0,1.38768623]
[1717795113911,0.0137632,69386.0,69385.0,1.68768623]
[1717795114142,0.0137632,69386.0,69385.0,1.97193223]
[1717795114829,0.0137632,69386.0,69385.0,1.82936683]
[1717795115049,0.0137632,69386.0,69385.0,1.96691303]
[1717795115463,0.0137632,69386.0,69385.0,1.98091303]
[1717795116537,0.0137632,69386.0,69385.0,1.99491303]
[1717795116743,0.0137632,69386.0,69385.0,1.98091303]
[1717795117778,0.0137632,69386.0,69385.0,1.99491303]
[1717795118020,0.0137632,69386.0,69385.0,1.96691303]
[1717795118471,0.0137632,69386.0,69385.0,2.02401891]
[1717795118719,0.0137632,69386.0,69385.0,2.03801891]
[1717795118983,0.0137632,69386.0,69385.0,1.88847271]
[1717795119335,0.0137632,69386.0,69385.0,2.03801675]
[1717795119797,0.0137632,69386.0,69385.0,1.81232354]
[1717795120283,0.0137632,69386.0,69385.0,1.79832354]
[1717795122953,0.0137632,69386.0,69385.0,2.01232354]
[1717795123910,0.0137632,69386.0,69385.0,1.81232354]
[1717795124439,0.0137632,69386.0,69385.0,1.83381321]
[1717795124650,0.0137632,69386.0,69385.0,2.03381321]
[1717795124884,0.0087632,69386.0,69385.0,2.01232354]
[1717795126104,0.0087632,69386.0,69385.0,1.99832354]
[1717795126364,0.0087632,69386.0,69385.0,2.20863961]
[1717795126564,0.0087632,69386.0,69385.0,2.23663961]
[1717795127415,0.0087632,69386.0,69385.0,2.22263961]
[1717795127617,0.0087632,69386.0,69385.0,2.20863961]
[1717795127814,0.0087632,69386.0,69385.0,2.22263961]
[1717795128052,0.0087632,69386.0,69385.0,2.23663961]
[1717795128251,0.0087632,69386.0,69385.0,2.23662283]
[1717795129261,0.0087632,69386.0,69385.0,2.03662283]
[1717795129568,0.0087632,69386.0,69385.0,2.00862283]
[1717795129744,0.0087632,69386.0,69385.0,2.02262283]
[1717795130233,0.0087632,69386.0,69385.0,2.22262283]
[1717795130657,0.0087632,69386.0,69385.0,2.03662283]
[1717795130913,0.0087632,69386.0,69385.0,2.09429783]
[1717795131746,0.0087632,69386.0,69385.0,2.29429783]
[1717795132001,0.0087632,69386.0,69385.0,2.09429783]
[1717795132416,0.0087632,69386.0,69385.0,2.28029783]
[1717795132636,0.0087632,69386.0,69385.0,2.26629783]
[1717795132840,0.0087632,69386.0,69385.0,2.28029783]
[1717795133016,0.0087632,69386.0,69385.0,2.29429783]
[1717795134523,0.0087632,69386.0,69385.0,2.29429822]
[1717795135937,0.0096232,69386.0,69385.0,2.29429822]
[1717795137580,0.0096232,69386.0,69385.0,2.29409822]
[1717795139916,0.0096232,69386.0,69385.0,2.29409863]
[1717795140119,0.0096232,69386.0,69385.0,2.28009863]
[1717795140328,0.0096232,69386.0,69385.0,2.06609863]
[1717795140540,0.0096232,69386.0,69385.0,2.09409863]
[1717795140776,0.0096232,69386.0,69385.0,2.29409863]
[1717795141364,0.0096232,69386.0,69385.0,2.09409863]
[1717795141994,0.0096232,69386.0,69385.0,2.29409863]
[1717795145472,0.0096232,69386.0,69385.0,2.09409863]
[1717795146964,0.0096232,69386.0,69385.0,1.99651173]
[1717795147950,0.0096232,69386.0,69385.0,2.19651173]
[1717795150568,0.0096232,69386.0,69385.0,1.99651173]
[1717795150777,0.0096232,69386.0,69385.0,2.19651173]
[1717795151585,0.0096232,69386.0,69385.0,1.99651173]
[1717795151789,0.0096232,69386.0,69385.0,2.3416296]
[1717795153187,0.0096232,69386.0,69385.0,2.1416296]
[1717795153608,0.0096232,69386.0,69385.0,2.3416296]
[1717795156133,2e-07,69386.0,69385.0,2.2131296]
[1717795156341,2e-07,69386.0,69385.0,1.8981296]
[1717795156564,0.2378002,69386.0,69385.0,1.34176573]
[1717795156751,0.2378002,69386.0,69385.0,1.28409073]
[1717795156948,0.31257737,69386.0,69385.0,1.28409073]
[1717795157190,0.32147752,69386.0,69385.0,1.28409073]
[1717795157351,0.32147752,69386.0,69385.0,0.8962466]
[1717795157863,0.31257737,69386.0,69385.0,0.8962466]
[1717795158278,0.32149073,69386.0,69385.0,0.9102466]
[1717795158691,0.32149073,69386.0,69385.0,0.9192466]
[1717795159530,0.32149073,69386.0,69385.0,0.9332466]
[1717795163299,0.31257737,69386.0,69385.0,0.9332466]
[1717795163711,0.32149073,69386.0,69385.0,0.9332466]
[1717795166352,0.00891356,69386.0,69385.0,0.9482466]
[1717795166553,0.00891356,69386.0,69385.0,1.06307126]
[1717795167384,2e-07,69386.0,69385.0,1.06307126]
[1717795168036,0.00891356,69386.0,69385.0,1.06401726]
[1717795168216,2e-07,69386.0,69385.0,1.06401726]
[1717795168469,0.00884937,69386.0,69385.0,1.06401726]
[1717795168678,2e-07,69386.0,69385.0,1.06401726]
[1717795169123,0.00884937,69386.0,69385.0,1.06401726]
[1717795169359,2e-07,69386.0,69385.0,1.06401726]
[1717795169580,2e-07,69386.0,69385.0,1.0917926]
[1717795169793,0.2329002,69386.0,69385.0,0.6459466]
[1717795170017,0.24181356,69386.0,69385.0,0.9341926]
[1717795170450,0.24181356,69386.0,69385.0,0.6459466]
[1717795171125,0.00891356,69386.0,69385.0,1.27098726]
[1717795171334,2e-07,69386.0,69385.0,1.41503287]
[1717795172177,2e-07,69386.0,69385.0,1.51494874]
[1717795173458,2e-07,69386.0,69385.0,1.37098726]
[1717795173660,2e-07,69386.0,69385.0,1.43192859]
[1717795175741,2e-07,69386.0,69385.0,1.72017459]
[1717795177542,2e-07,69386.0,69385.0,1.72547402]
[1717795178256,2e-07,69386.0,69385.0,0.48424136]
[1717795178460,0.2621002,69386.0,69385.0,0.17848676]
[1717795178678,0.33687173,69386.0,69385.0,0.17848676]
[1717795178888,0.6360706,69386.0,69385.0,0.17848676]
[1717795179097,0.71553347,69386.0,69385.0,0.028946]
[1717795179308,0.005,69372.0,69359.0,0.43500642]
[1717795179489,0.005,69372.0,69371.0,0.144151]
[1717795179490,0.2421,69372.0,69371.0,0.144151]
[1717795179698,0.40328746,69372.0,69371.0,0.28856993]
[1717795179920,0.63638544,69372.0,69371.0,0.28856993]
[1717795180356,0.62556287,69372.0,69371.0,0.28856993]
[1717795181127,0.32633737,69372.0,69371.0,0.28856993]